[Event "51st Rilton Cup 2023-24"]
[Site "Stockholm"]
[Date "2023.12.30"]
[Round "4.6"]
[White "Costa, Leonardo"]
[Black "Ostlund, Joar"]
[Result "0-1"]
[ECO "C60"]
[WhiteElo "2472"]
[BlackElo "2326"]
[Annotator "TA"]
[PlyCount "90"]
[EventDate "2023.12.27"]
[EventType "swiss"]
[EventCountry "SWE"]
[SourceTitle "playchess.com"]
[Source "ChessBase"]
[SourceQuality "1"]
[TimeControl "40/5400+30:1800+30"]

{[%evp 9,90,31,40,46,50,29,34,34,56,17,47,20,23,18,26,21,30,23,84,89,76,67,79,74,93,44,282,285,326,326,611,629,638,627,475,0,0,0,0,-347,-356,-354,-354,-358,-330,-331,-332,-323,-301,-385,-334,-310,-324,-300,-270,-416,-377,-420,-420,-399,-381,-520,-532,-519,-516,-492,-470,-638,-644,-621,-593,-650,0,-614,0,-665,-662,-830,-824,-1034,-997,-5964,-5712]} 1. e4 {[%emt 0:00:02]} e5 {[%emt 0:00:05]} 2. Nf3 {[%emt 0:00:03]} Nc6 {[%emt 0:00:09]} 3. Bb5 {[%emt 0:00:05]} g6 {[%emt 0:00:17]} 4. c3 {[%emt 0:00:07]} Bg7 {[%emt 0:00:10]} 5. d4 {[%emt 0:00:32]} exd4 {[%emt 0:00:09]} 6. cxd4 {[%emt 0:00:03] C60: Ruy Lopez: Unusual Black 3rd moves and 3...g6.} a6 {[%emt 0:00:14]} 7. Ba4 {[%emt 0:00:24]} b5 {[%emt 0:00:14]} 8. Bc2 {[%emt 0:00:03] White is slightly better.} d5 {[%emt 0:00:09]} 9. Bg5 {[%emt 0:14:53] [#]} f6 $146 {[%emt 0:13:23]} ({Predecessor:} 9... Nge7 10. Nc3 h6 11. Bxe7 Nxe7 12. e5 O-O 13. O-O Bg4 14. h3 Bxf3 15. Qxf3 c5 16. dxc5 Qc7 17. Nxd5 Nxd5 18. Be4 Rad8 19. Bxd5 Bxe5 20. c6 Bxb2 {½-½ Ragger,M (2680)-Alekseenko,K (2699) FRA-chT Top 12 2021 (5.4)}) 10. Be3 {[%emt 0:01:10]} Nge7 {[%emt 0:06:00]} 11. Nc3 {[%emt 0:00:26]} O-O {[%emt 0:08:19]} 12. O-O {[%emt 0:02:49]} dxe4 {[%emt 0:04:41]} 13. Nxe4 {[%emt 0:13:05][%cal Od4d5]} f5 {[%emt 0:02:40]} (13... Bg4 $11) 14. Bb3+ $16 {[%emt 0:01:11]} Kh8 {[%emt 0:00:26] [#]} 15. Neg5 {[%emt 0:00:16]} f4 {[%emt 0:00:57]} 16. Bd2 {[%emt 0:02:06]} Nd5 {[%emt 0:14:45] [#]} 17. Qc2 {[%emt 0:15:22]} (17. h4 $1 $16) 17... Qd7 $2 {[%emt 0:17:51]} (17... Nxd4 $14 18. Nxd4 Qxg5) 18. Rfe1 $18 {[%emt 0:02:04]} Rf5 {[%emt 0:17:17]} (18... Nxd4 $2 19. Nxd4 Bxd4 20. Ne6 Qxe6 21. Rxe6 Bxe6 22. Qc6 $18) 19. Ne6 {[%emt 0:04:53]} Qd6 $2 {[%emt 0:00:33]} (19... Nce7 20. Rac1 Ra7) 20. Bxd5 {[%emt 0:03:29]} Rxd5 {[%emt 0:00:56]} 21. Bxf4 {[%emt 0:00:04]} (21. Nxf4 Bg4 $18) 21... Ne5 {[%emt 0:03:14]} 22. Nxc7 {[%emt 0:13:28]} (22. dxe5 Qxe6 23. Ng5 (23. Qxc7 Rd7 $16) 23... Qe8 24. Qxc7 Be6 $18) ({White must play} 22. Bxe5 $18 Bxe5 23. Neg5 Bxh2+ 24. Nxh2 Rxg5 25. Qe4) 22... Nxf3+ $11 {[%emt 0:00:43]} 23. gxf3 {[%emt 0:00:02]} Qxf4 {[%emt 0:00:16]} 24. Nxd5 $4 {[%emt 0:06:16][%mdl 8192] White is now going downhill.} (24. Re8+ $11 {and White stays safe.} Bf8 25. Rxf8+ (25. Nxd5 Qg5+ 26. Kh1 Bh3 $15) (25. Nxa8 $2 Bh3 $19) 25... Qxf8 26. Nxd5) 24... Qg5+ $19 {[%emt 0:00:12]} 25. Kh1 {[%emt 0:00:04]} Bb7 {[%emt 0:02:07]} ({Don't play} 25... Qxd5 26. Re8+ $18) 26. Re3 {[%emt 0:02:02] Black must now prevent Nc7.} Bxd5 {[%emt 0:01:04]} 27. Rg1 {[%emt 0:00:03]} Qf4 {[%emt 0:04:33]} 28. Rg3 {[%emt 0:00:44]} Rf8 {[%emt 0:01:15]} (28... Qxd4 $2 {too greedy.} 29. Rd3 Qc4 30. Qd1 $19) 29. Qc5 {[%emt 0:02:48]} Qxd4 {[%emt 0:01:47]} (29... Bxa2 $2 {perishes.} 30. b3 Bb1 31. Rg4 $19) 30. Qxd4 {[%emt 0:00:31]} Bxd4 {[%emt 0:00:02]} 31. Rd3 {[%emt 0:00:13]} Rf4 {[%emt 0:00:42]} 32. b3 {[%emt 0:01:56]} (32. Kg2 $142) 32... Kg7 {[%emt 0:00:08]} 33. Kg1 {[%emt 0:00:10] Threatens to win with Rg4.} h5 {[%emt 0:00:44] Dodges Rg4} 34. Kf1 {[%emt 0:00:08]} Kf6 {[%emt 0:00:20]} 35. Ke2 {[%emt 0:00:17]} b4 {[%emt 0:00:30]} 36. Kf1 {[%emt 0:02:09]} Bc6 {[%emt 0:00:38] Hoping for ...Bb5. A strong pair of Bishops.} 37. Kg1 {[%emt 0:00:13]} Bc5 {[%emt 0:00:54]} 38. Rd8 {[%emt 0:02:04]} Bxf3 {[%emt 0:00:33]} 39. Rc8 {[%emt 0:00:02]} Bd6 {[%emt 0:00:31] aiming for ...h4.} 40. Rd8 {[%emt 0:01:41]} Bc5 {[%emt 0:00:07]} 41. Rc8 {[%emt 0:34:57]} Bd6 {[%emt 0:02:19]} 42. Rd8 {[%emt 0:00:00]} Be7 {[%emt 0:01:04] Black is clearly winning.} 43. Rc8 {[%emt 0:00:00]} g5 {[%emt 0:03:58][%cal Bg6g5,Bg5g4][%mdl 32]} 44. Rc4 {[%emt 0:00:00]} Rxc4 {[%emt 0:00:39]} 45. bxc4 {[%emt 0:00:00]} g4 {[%emt 0:00:07] Weighted Error Value: White=0.67/Black=0.51} 0-1

[Event "51st Rilton Cup 2023-24"]
[Site "Stockholm"]
[Date "2023.12.30"]
[Round "4.7"]
[White "Trost, Edvin"]
[Black "Yordanov, Lachezar"]
[Result "1-0"]
[ECO "A45"]
[WhiteElo "2434"]
[BlackElo "2312"]
[Annotator "RC"]
[PlyCount "103"]
[EventDate "2023.12.27"]
[EventType "swiss"]
[EventCountry "SWE"]
[SourceTitle "playchess.com"]
[Source "ChessBase"]
[SourceQuality "1"]
[TimeControl "40/5400+30:1800+30"]

1. d4 {[%emt 0:00:05]} Nf6 {[%emt 0:02:15]} 2. Bg5 {[%emt 0:00:09]} e6 {[%emt 0:00:11]} 3. e4 {[%emt 0:00:06]} h6 {[%emt 0:00:09]} 4. Bxf6 {[%emt 0:00:08]} Qxf6 {[%emt 0:00:07]} 5. Nc3 {[%emt 0:00:05]} g6 {[%emt 0:16:16]} 6. e5 {[%emt 0:02:33]} Qe7 {[%emt 0:00:43]} 7. f4 {[%emt 0:00:25]} Bg7 {[%emt 0:00:57]} 8. Qd2 {[%emt 0:01:14]} g5 {[%emt 0:05:30]} 9. O-O-O {[%emt 0:03:52]} gxf4 {[%emt 0:00:07]} 10. Nf3 {[%emt 0:00:18]} d5 {[%emt 0:02:21]} 11. exd6 {[%emt 0:02:00]} cxd6 {[%emt 0:02:11]} 12. Qxf4 {[%emt 0:01:02]} O-O {[%emt 0:02:40]} 13. Re1 {[%emt 0:01:32]} Nc6 {[%emt 0:03:41]} 14. Bd3 {[%emt 0:05:53]} a5 {[%emt 0:09:18]} 15. a3 {[%emt 0:04:42]} a4 {[%emt 0:02:38]} 16. g4 {[%emt 0:02:48]} Ra5 {[%emt 0:01:28]} 17. Qe4 {[%emt 0:05:17]} f5 {[%emt 0:09:53]} 18. gxf5 {[%emt 0:00:22]} Raxf5 {[%emt 0:00:06]} 19. d5 {[%emt 0:05:50]} Ne5 {[%emt 0:04:15]} 20. Nxe5 {[%emt 0:02:05]} Bxe5 {[%emt 0:01:51]} 21. dxe6 {[%emt 0:02:04]} Bxe6 {[%emt 0:01:13]} 22. Kb1 {[%emt 0:04:00]} Kh8 {[%emt 0:05:29]} 23. Rhg1 {[%emt 0:03:42]} Rf4 {[%emt 0:05:47]} 24. Qe3 {[%emt 0:02:55]} Qh4 {[%emt 0:06:30]} 25. Ne4 {[%emt 0:02:04]} Bg8 {[%emt 0:03:22]} 26. Qd2 {[%emt 0:17:10]} Qh5 {[%emt 0:06:43]} 27. Nc3 {[%emt 0:11:14]} R8f6 {[%emt 0:00:22]} 28. Rg2 {[%emt 0:02:36]} Bd4 {[%emt 0:05:11]} 29. Ne2 {[%emt 0:06:25]} Rf2 {[%emt 0:00:27]} 30. Rxf2 {[%emt 0:01:14]} Bxf2 {[%emt 0:00:01]} 31. Rf1 {[%emt 0:00:00]} Qxh2 {[%emt 0:01:34]} 32. Qb4 {[%emt 0:02:31]} Qe5 {[%emt 0:01:08]} 33. Qxa4 {[%emt 0:00:23]} Bc5 {[%emt 0:01:18]} 34. Rd1 {[%emt 0:00:16]} Rf2 {[%emt 0:00:58]} 35. Nc3 {[%emt 0:01:48]} Rf4 {[%emt 0:00:43]} 36. Qb5 {[%emt 0:00:20]} Qe7 {[%emt 0:00:28]} 37. Rh1 {[%emt 0:00:27]} Rh4 {[%emt 0:00:27]} 38. Rf1 {[%emt 0:00:01]} Rf4 {[%emt 0:00:12]} 39. Rd1 {[%emt 0:00:21]} Qf7 {[%emt 0:00:38]} 40. Rh1 {[%emt 0:00:40]} Kg7 {[%emt 0:00:30]} 41. b3 {[%emt 0:33:06]} Qe7 {[%emt 0:03:29]} 42. Ne2 {[%emt 0:00:00]} Rg4 {[%emt 0:01:17]} 43. Qa5 {[%emt 0:00:00]} Bf7 {[%emt 0:04:47]} 44. Re1 {[%emt 0:00:00]} Qe5 {[%emt 0:04:25]} 45. Rf1 {[%emt 0:00:00]} Qe7 {[%emt 0:01:57]} 46. Qc3+ {[%emt 0:00:00]} Qe5 {[%emt 0:00:10]} 47. Qa5 {[%emt 0:00:00]} Qe7 {[%emt 0:00:10]} 48. Rf5 {[%emt 0:00:00]} h5 {[%emt 0:12:19]} 49. Qc3+ {[%emt 0:00:00]} Kg8 {[%emt 0:00:02]} 50. b4 {[%emt 0:01:30]} Be3 {[%emt 0:00:12]} 51. Rf3 {[%emt 0:00:18]} Qe6 {[%emt 0:01:42]} 52. Rxe3 {[%emt 0:00:35]} 1-0

[Event "51st Rilton Cup 2023-24"]
[Site "Stockholm"]
[Date "2023.12.30"]
[Round "4.8"]
[White "Bronstein, Or"]
[Black "Borgaonkar Akshay"]
[Result "0-1"]
[ECO "D12"]
[WhiteElo "2428"]
[BlackElo "2206"]
[Annotator "RC"]
[PlyCount "31"]
[EventDate "2023.12.27"]
[EventType "swiss"]
[EventCountry "SWE"]
[SourceTitle "playchess.com"]
[Source "ChessBase"]
[SourceQuality "1"]
[TimeControl "40/5400+30:1800+30"]

1. d4 {[%emt 0:00:30]} d5 {[%emt 0:00:30]} 2. c4 {[%emt 0:00:30]} c6 {[%emt 0:00:30]} 3. Nf3 {[%emt 0:00:30]} Nf6 {[%emt 0:00:30]} 4. e3 {[%emt 0:00:30]} Bf5 {[%emt 0:00:30]} 5. Nc3 {[%emt 0:00:30]} e6 {[%emt 0:00:30]} 6. Nh4 {[%emt 0:00:30]} Bg6 {[%emt 0:00:30]} 7. Bd2 {[%emt 0:00:30]} Nbd7 {[%emt 0:00:30]} 8. Nxg6 {[%emt 0:00:30]} hxg6 {[%emt 0:00:30]} 9. cxd5 {[%emt 0:00:30]} cxd5 {[%emt 0:00:30]} 10. Qc2 {[%emt 0:00:30]} Bd6 {[%emt 0:00:30]} 11. O-O-O {[%emt 0:00:30]} Ng4 {[%emt 0:00:30]} 12. Be1 {[%emt 0:00:30]} Bxh2 {[%emt 0:00:30]} 13. Rxh2 {[%emt 0:00:30]} Nxh2 {[%emt 0:00:30]} 14. Be2 {[%emt 0:00:30]} Rg8 {[%emt 0:00:30]} 15. g3 {[%emt 0:00:30]} Nf6 {[%emt 0:00:30]} 16. f4 {[%emt 0:00:30]} 0-1

[Event "51st Rilton Cup 2023-24"]
[Site "Stockholm"]
[Date "2023.12.30"]
[Round "4.9"]
[White "Elmi, Saad Abobaker"]
[Black "Jarmula, Lukasz"]
[Result "0-1"]
[ECO "B08"]
[WhiteElo "2333"]
[BlackElo "2425"]
[Annotator "ChessBase"]
[PlyCount "80"]
[EventDate "2023.12.27"]
[EventType "swiss"]
[EventCountry "SWE"]
[SourceTitle "playchess.com"]
[Source "ChessBase"]
[SourceQuality "1"]
[TimeControl "40/5400+30:1800+30"]

1. e4 {[%emt 0:00:01]} d6 {[%emt 0:01:20]} 2. d4 {[%emt 0:00:53]} Nf6 {[%emt 0:00:06]} 3. Nc3 {[%emt 0:00:57]} Nc6 {[%emt 0:00:07]} 4. Nf3 {[%emt 0:02:20]} g6 {[%emt 0:00:16]} 5. d5 {[%emt 0:05:39]} Nb8 {[%emt 0:00:21]} 6. Be2 {[%emt 0:00:33]} Bg7 {[%emt 0:00:14]} 7. O-O {[%emt 0:00:34]} O-O {[%emt 0:00:08]} 8. Be3 {[%emt 0:01:10]} e6 {[%emt 0:03:57]} 9. Qd2 {[%emt 0:15:23]} exd5 {[%emt 0:02:04]} 10. exd5 {[%emt 0:00:10]} Bg4 {[%emt 0:00:06]} 11. h3 {[%emt 0:02:13]} Bxf3 {[%emt 0:00:28]} 12. Bxf3 {[%emt 0:00:05]} Nbd7 {[%emt 0:00:24]} 13. Rfe1 {[%emt 0:06:23]} a6 {[%emt 0:04:48]} 14. b3 {[%emt 0:06:53]} Re8 {[%emt 0:02:55]} 15. Rad1 {[%emt 0:02:19]} Re7 {[%emt 0:13:16]} 16. g3 {[%emt 0:06:40]} Qf8 {[%emt 0:01:42]} 17. a4 {[%emt 0:05:44]} Rae8 {[%emt 0:04:26]} 18. Kf1 {[%emt 0:02:09]} h5 {[%emt 0:02:35]} 19. Bg5 {[%emt 0:04:34]} Re5 {[%emt 0:06:01]} 20. Bf4 {[%emt 0:02:59]} Rxe1+ {[%emt 0:04:05]} 21. Rxe1 {[%emt 0:00:09]} Ne5 {[%emt 0:00:45]} 22. Bg2 {[%emt 0:01:39]} Kh7 {[%emt 0:03:15]} 23. Ne4 {[%emt 0:02:17]} Nxe4 {[%emt 0:01:43]} 24. Rxe4 {[%emt 0:00:08]} Nd7 {[%emt 0:04:03]} 25. Rc4 {[%emt 0:03:42]} Nc5 {[%emt 0:08:22]} 26. b4 {[%emt 0:07:54]} b5 {[%emt 0:01:52]} 27. axb5 {[%emt 0:00:12]} axb5 {[%emt 0:00:06]} 28. Rxc5 {[%emt 0:00:06]} dxc5 {[%emt 0:00:07]} 29. Bxc7 {[%emt 0:00:23]} cxb4 {[%emt 0:05:10]} 30. Bf3 {[%emt 0:07:41]} Be5 {[%emt 0:10:56]} 31. Ba5 {[%emt 0:10:12]} Bd6 {[%emt 0:03:03]} 32. Qd3 {[%emt 0:00:28]} Rc8 {[%emt 0:03:05]} 33. Be4 {[%emt 0:01:23]} Rc4 {[%emt 0:02:52]} 34. Qf3 {[%emt 0:00:34]} Kg8 {[%emt 0:02:25]} 35. Bd3 {[%emt 0:00:33]} Rc3 {[%emt 0:00:21]} 36. Qf6 {[%emt 0:00:49]} Qe7 {[%emt 0:02:26]} 37. Qd4 {[%emt 0:00:20]} Ra3 {[%emt 0:01:28]} 38. Qb6 {[%emt 0:01:24]} b3 {[%emt 0:02:21]} 39. Qxb5 {[%emt 0:00:41]} b2 {[%emt 0:01:28]} 40. c3 {[%emt 0:00:08]} Ra1+ {[%emt 0:00:33]} 0-1

[Event "51st Rilton Cup 2023-24"]
[Site "Stockholm"]
[Date "2023.12.30"]
[Round "4.10"]
[White "Socko, Bartosz"]
[Black "Kenneskog, Theodor"]
[Result "1-0"]
[ECO "E04"]
[WhiteElo "2550"]
[BlackElo "2364"]
[Annotator "TA"]
[PlyCount "147"]
[EventDate "2023.12.27"]
[EventType "swiss"]
[EventCountry "SWE"]
[SourceTitle "playchess.com"]
[Source "ChessBase"]
[SourceQuality "1"]
[TimeControl "40/5400+30:1800+30"]

{[%evp 15,147,0,26,19,20,14,4,0,0,6,0,0,3,0,1,0,0,0,33,0,0,0,43,29,36,25,48,17,22,19,20,13,60,59,50,54,51,62,60,58,70,64,68,53,81,73,87,61,61,61,61,61,61,61,61,61,61,61,61,61,61,54,61,22,54,54,54,54,54,28,65,65,65,65,65,81,81,81,81,28,28,28,28,28,28,0,81,81,81,81,12834,12835,12835,12834,12834,0,0,0,12836,0,0,0,0,0,0,0,12834,0,81,0,0,0,28,28,12835,1247,12839,12839,12845,12845,12845,12846,12847,12847,12850,27999,27999,27999,27999,27999,27999,27999,27999,27999]} 1. d4 {[%emt 0:00:04]} Nf6 {[%emt 0:00:32]} 2. Nf3 {[%emt 0:00:07]} d5 {[%emt 0:00:04]} 3. c4 {[%emt 0:00:36]} e6 {[%emt 0:00:06]} 4. g3 {[%emt 0:00:14]} dxc4 {[%emt 0:00:24]} 5. Bg2 {[%emt 0:00:08]} c5 {[%emt 0:00:05]} 6. O-O {[%emt 0:00:33]} Nc6 {[%emt 0:00:05]} 7. Qa4 {[%emt 0:00:16]} Bd7 {[%emt 0:00:07]} 8. Qxc4 {[%emt 0:00:09]} b5 {[%emt 0:00:09]} 9. Qc3 {[%emt 0:00:35] E04: Open Catalan: 5 Nf3.} b4 {[%emt 0:00:21]} 10. Qd3 {[%emt 0:01:42]} Rc8 {[%emt 0:00:17]} 11. Nbd2 {[%emt 0:05:23][%cal Bb1d2,Bd2b3,Bb3d4][%mdl 32] [#] The position is equal.} Nxd4 $146 {[%emt 0:05:38]} ({Predecessor:} 11... cxd4 12. Nxd4 Nxd4 13. Qxd4 Bc5 14. Qd3 Ba4 15. Qa6 Qd7 16. Nb3 Bb6 17. Bd2 Bb5 {1-0 Wallace,J (2349)-Elsness,F (2475) Kragero op 2023 (4)}) 12. Nxd4 {[%emt 0:00:11]} cxd4 {[%emt 0:00:05]} 13. Nb3 {[%emt 0:02:07]} Qb6 {[%emt 0:06:15]} 14. Bf4 {[%emt 0:07:32][%cal Of1c1,Bc1f4,Bf4e5,Be5d4][%mdl 32]} Be7 {[%emt 0:06:54]} 15. Qxd4 {[%emt 0:01:11]} Qxd4 {[%emt 0:04:22]} 16. Nxd4 {[%emt 0:00:06]} O-O {[%emt 0:00:56]} 17. Rac1 {[%emt 0:00:25]} (17. Bb7 $5 {[%cal Rb7c8]}) 17... Nd5 {[%emt 0:04:45]} 18. Be5 {[%emt 0:08:28]} Rc5 {[%emt 0:25:25]} 19. Rxc5 {[%emt 0:05:27]} Bxc5 {[%emt 0:00:04]} 20. Nb3 {[%emt 0:00:15]} Be7 {[%emt 0:00:49]} 21. Bxd5 {[%emt 0:07:47]} exd5 {[%emt 0:00:04]} 22. Rd1 {[%emt 0:02:01]} Be6 {[%emt 0:03:53]} 23. Bd4 {[%emt 0:00:27]} Rc8 {[%emt 0:00:54] Wards off Rc1} (23... Ra8 $11 {feels stronger.}) 24. Bxa7 $14 {[%emt 0:00:36]} Ra8 {[%emt 0:01:17]} 25. Bc5 {[%emt 0:00:20]} Bxc5 {[%emt 0:01:42]} 26. Nxc5 {[%emt 0:00:08]} Rxa2 {[%emt 0:00:08][%mdl 4096] Endgame KRB-KRN} 27. Rd2 {[%emt 0:03:21]} Kf8 {[%emt 0:08:22]} 28. Kg2 {[%emt 0:00:05]} (28. Nd3 $5 {[%cal Rd3b4]}) 28... Ke7 {[%emt 0:08:24]} 29. Nd3 {[%emt 0:14:14]} Ra4 {[%emt 0:03:05]} 30. b3 {[%emt 0:01:11][%mdl 64] Deflection} Ra3 {[%emt 0:01:10]} 31. Rb2 {[%emt 0:01:36]} d4 {[%emt 0:06:21]} 32. Nxb4 {[%emt 0:00:21]} Rxb3 {[%emt 0:01:01]} 33. Rxb3 {[%emt 0:00:08]} Bxb3 {[%emt 0:00:04] KB-KN} 34. Nc6+ {[%emt 0:00:07]} Kd6 {[%emt 0:00:29]} 35. Nxd4 {[%emt 0:00:08]} Bd5+ {[%emt 0:00:09]} 36. f3 {[%emt 0:01:49]} Ke5 {[%emt 0:00:24] Repels Nf5} 37. Nc2 {[%emt 0:04:58]} f5 {[%emt 0:00:09]} 38. Nb4 {[%emt 0:03:24] Nxd5 would be deadly.} Bc4 {[%emt 0:02:53]} 39. e3 {[%emt 0:06:25]} Bb5 {[%emt 0:03:33]} 40. Kf2 {[%emt 0:00:46]} g5 {[%emt 0:04:11]} 41. f4+ {[%emt 0:33:39]} gxf4 {[%emt 0:31:28]} 42. exf4+ {[%emt 0:00:13]} Kd4 {[%emt 0:00:00]} 43. Nc2+ {[%emt 0:00:00]} Ke4 {[%emt 0:00:00]} 44. Ne1 {[%emt 0:00:00]} h6 {[%emt 0:00:00]} 45. Nf3 {[%emt 0:00:00]} Bc6 {[%emt 0:00:00]} 46. Ne5 {[%emt 0:00:00]} Be8 {[%emt 0:00:00]} 47. Nc4 {[%emt 0:00:00]} ({White should try} 47. Kg2 $1 $16) 47... Kd5 $1 $11 {[%emt 0:00:00]} 48. Nd2 {[%emt 0:00:00]} Kd4 $1 {[%emt 0:00:00]} 49. Nf3+ {[%emt 0:00:00]} Kd3 $1 {[%emt 0:00:00]} 50. Ne5+ {[%emt 0:00:00]} (50. h3 $11) 50... Ke4 $16 {[%emt 0:00:00]} 51. Kg2 $1 {[%emt 0:00:00]} Kd5 {[%emt 0:00:00]} 52. Kh3 {[%emt 0:00:00]} Ke4 $2 {[%emt 0:00:00][%mdl 8192]} (52... Ke6 $16) 53. Kh4 $18 {[%emt 0:00:00]} Ke3 {[%emt 0:00:00]} 54. Nc4+ {[%emt 0:00:00]} Kf3 {[%emt 0:00:00]} 55. Nd6 $2 {[%emt 0:00:00]} ({White must play} 55. h3 $1 $18 h5 56. Nb6) 55... Bg6 {[%emt 0:00:00]} 56. Nc8 {[%emt 0:00:00] Threatens to win with Ne7.} Ke4 $2 {[%emt 0:00:00][%mdl 8192]} (56... Bf7 $11) 57. Ne7 $2 {[%emt 0:00:00]} (57. h3 $1 $18 Kf3 58. Ne7) 57... Bf7 $11 {[%emt 0:00:00]} 58. Nc6 {[%emt 0:00:00] aiming for Ne7.} Be8 {[%emt 0:00:00]} 59. Ne5 {[%emt 0:00:00]} Ke3 $1 {[%emt 0:00:00]} 60. Nc4+ $2 {[%emt 0:00:31][%mdl 8192]} (60. h3 $11) 60... Kf3 $1 $18 {[%emt 0:00:00]} 61. Kh3 $2 {[%emt 0:07:41]} (61. h3 $1 $18 h5 62. Nb6) 61... Bh5 {[%emt 0:00:26] [#]} (61... Kf2 $1 $11 {remains equal.}) 62. Nb6 {[%emt 0:04:54]} (62. Ne5+ $1 $16 Ke4 63. Kg2) 62... Bf7 {[%emt 0:01:07]} 63. Nc8 {[%emt 0:00:55]} Ke3 {[%emt 0:01:05]} 64. Nd6 {[%emt 0:02:08]} Bg6 $2 {[%emt 0:00:19][%mdl 8192]} (64... Be6 $11) 65. Kg2 {[%emt 0:00:42]} (65. Nc4+ $142 Kd4 66. Ne5) 65... Kd4 {[%emt 0:04:37] [#]} 66. g4 $1 {[%emt 0:00:12][%mdl 512]} fxg4 {[%emt 0:00:44]} (66... Kc5 67. Nxf5) 67. f5 {[%emt 0:00:04]} Bh5 {[%emt 0:00:07]} 68. f6 {[%emt 0:00:04]} Kd5 {[%emt 0:02:34]} 69. f7 {[%emt 0:00:32]} Bxf7 {[%emt 0:00:05]} 70. Nxf7 {[%emt 0:00:03]} h5 {[%emt 0:00:07] White mates.} 71. Nh8 {[%emt 0:02:33]} Ke4 {[%emt 0:04:51]} 72. Ng6 {[%emt 0:00:11]} Ke3 {[%emt 0:01:22]} 73. Kg3 {[%emt 0:00:22]} Ke4 {[%emt 0:00:14]} 74. Nf4 {[%emt 0:00:20] Weighted Error Value: White=0.23 (precise) /Black=0.08 (flawless)} 1-0